Cogmind - Beta 10.2 *** ADVENTURER MODE // 2022.01.20 @ 13:27:30 Player: Hygogg Result: Destroyed by G-47 Trooper with Particle Gun Performance ------------- Evolutions (2) 1000 Regions Visited (4) 800 Robots Destroyed (27) 135 Value Destroyed (540) 540 Prototype IDs (2) 40 Alien Tech Used (0) 0 Bonus (0) 0 TOTAL SCORE: 2515 Bonus ------- None Cogmind --------- Core Integrity 0/550 Matter 249/300 Energy 15/100 System Corruption 1% Temperature Cool (12) Movement Core (150) Ox2 Location -8/Materials Parts ------- > --- POWER (1) -------- (None) > --- PROPULSION (4) --- (None) > --- UTILITY (3) ------ Advanced Visual Processing Unit > --- WEAPON (3) ------- Light EM Pulse Cannon Light EM Pulse Cannon > --- INVENTORY (4) ---- Improved Ion Engine Medium Storage Unit Signal Interpreter Transmission Jammer Peak State ------------ > --- POWER ------------ Improved Ion Engine > --- PROPULSION ------- Aluminum Leg Aluminum Leg Aluminum Leg > --- UTILITY ---------- Large Storage Unit Melee Analysis Suite > --- WEAPON ----------- Light Cannon Improved Light Cannon Heavy Flail > --- INVENTORY -------- Ion Engine Improved Heat Sink Large Storage Unit Signal Interpreter Melee Analysis Suite Transmission Jammer Transmission Jammer EM Shotgun Beam Cannon Heavy Flail [Rating: 17] Favorites ----------- Power Ion Engine Engine Ion Engine Propulsion Aluminum Leg Leg Aluminum Leg Wheel Compact Wheel Flight Unit VTOL Module Utility Large Storage Unit Device Tractor Beam Storage Large Storage Unit Processor Melee Analysis Suite Protection Power Shielding Weapon Light Assault Rifle Energy Gun Small Laser Energy Cannon Beam Cannon Ballistic Gun Light Assault Rifle Ballistic Cannon Light Cannon Launcher Heavy Rocket Launcher Impact Weapon Heavy Flail Slashing Weapon Greatsword Build | -11 -10 -9 -9 -8 ------- Run | Scr Mat Mat Min Mat Slots Evolved 4 | . . 2 . 2 Power . | . . . . . Propulsion 2 | . . 1 . 1 Utility 1 | . . . . 1 Weapon 1 | . . 1 . . Parts Attached 48 | 8 10 10 3 17 Power 6 | 2 1 2 . 1 Engine 6 | 2 1 2 . 1 Core . | . . . . . Reactor . | . . . . . Propulsion 10 | 2 1 3 . 4 Treads . | . . . . . Leg 8 | 2 1 3 . 2 Wheel 1 | . . . . 1 Hover . | . . . . . Flight 1 | . . . . 1 Utility 11 | 2 3 1 . 5 Device 1 | 1 . . . . Storage 5 | 1 2 . . 2 Processor 3 | . 1 1 . 1 Hackware . | . . . . . Protection 2 | . . . . 2 Artifact . | . . . . . Weapon 21 | 2 5 4 3 7 Energy Gun 1 | 1 . . . . Energy Cannon 5 | . 1 1 . 3 Ballistic Gun 3 | 1 2 . . . Ballistic Cannon 5 | . . 2 1 2 Launcher 2 | . . . . 2 Special Weapon . | . . . . . Impact Weapon 4 | . 2 1 1 . Slashing Weapon 1 | . . . 1 . Piercing Weapon . | . . . . . Special Melee Weapon . | . . . . . Unidentified Prototypes . | . . . . . Parts Lost 17 | . . 5 5 7 Power 3 | . . 1 1 1 Propulsion 8 | . . 2 3 3 Utility 2 | . . . 1 1 Weapon 4 | . . 2 . 2 Highest Loss Streak 5 | . . 5 5 3 Average Slot Usage (%) 77 | . 100 94 87 21 Engine 9 | . 14 10 10 1 Leg 21 | . 28 29 27 . Device 2 | . 6 . . . Storage 9 | . 14 11 10 . Processor 6 | . 7 11 9 . Protection 2 | . . . . 11 Energy Gun 1 | . 3 . . . Energy Cannon 3 | . 6 3 . 1 Ballistic Gun 8 | . 15 10 . . Ballistic Cannon 5 | . . 10 18 . Impact Weapon 4 | . 2 7 9 . Naked Turns 23 | . . . 7 16 Heaviest Build 33 | 12 26 33 33 18 Greatest Support 30 | 20 20 30 30 16 Greatest Overweight (x) 10 | 2 1 2 10 4 Average Overweight (x) . | . . . 1 . Largest Inventory Capacity 10 | 6 10 10 10 8 Average Capacity 7 | 5 8 10 9 4 Most Carried 10 | 2 10 10 10 4 Average Carried 6 | 1 7 9 9 3 Final Capacity 10 | 6 10 10 4 4 Final Carried 10 | 2 10 10 4 4 Class Distribution -------------------- 74% | Mutant 20% | Scavenger-Mutant Dominant Class ---------------- Mutant | -10/Materials Scavenger-Mutant | -9/Materials Scavenger-Mutant | -9/Mines Mutant | -8/Materials Resources | -11 -10 -9 -9 -8 ----------- Run | Scr Mat Mat Min Mat Matter Collected 710 | 280 170 147 29 84 Remotely 160 | 91 69 . . . Salvage Created 865 | 56 301 372 . 136 Parts 41 | 2 17 13 . 9 Haulers Intercepted 1 | . . . . 1 Recyclers Shooed 1 | . . 1 . . Parts Field Recycled . | . . . . . Retrieved Matter . | . . . . . Parts Self-Destructed . | . . . . . Prevented . | . . . . . Kills | -11 -10 -9 -9 -8 ------- Run | Scr Mat Mat Min Mat Combat Hostiles Destroyed 19 | . 8 9 . 2 Melee 7 | . 3 4 . . Guns 4 | . 4 . . . Cannons 4 | . 1 3 . . AOE 2 | . . . . 2 Classes Destroyed 7 | 1 3 1 . 2 Builder 1 | . . . . 1 Hauler 1 | . . . . 1 Recycler 3 | 1 1 1 . . Watcher 3 | . 2 1 . . Swarmer 10 | . 6 4 . . Grunt 7 | . 2 3 . 2 Sentry 2 | . . 2 . . Best Kill Streak 5 | 1 3 5 . 2 Combat Bots Only 5 | . 3 5 . 2 Max Kills in Single Turn 2 | 1 2 1 . 1 Gunslinging 1 | . 1 . . . Exploded 1 | . . . . 1 Melee 1 | . 1 1 . . Uniques/NPCs Destroyed . | . . . . . Combat | -11 -10 -9 -9 -8 -------- Run | Scr Mat Mat Min Mat Damage Taken 2489 | . 449 398 338 1304 Core 744 | . 84 54 50 556 Absorbed by Shields . | . . . . . Core Remaining (%) 80 | 100 66 . 74 . Volleys Fired 54 | 3 32 12 2 5 Largest 3 | 1 2 3 2 2 Hottest 100 | 40 80 100 74 98 Shots Fired 93 | 3 58 21 3 8 Gun 47 | 3 40 4 . . Cannon 42 | . 18 17 3 4 Launcher 4 | . . . . 4 Special . | . . . . . Kinetic 64 | . 40 20 3 1 Thermal 22 | 3 18 1 . . Explosive 4 | . . . . 4 Electromagnetic 3 | . . . . 3 Robot Hit Streak 16 | 3 16 12 4 6 Robot Miss Streak 2 | . 2 2 1 2 Penetration Max . | . . . . . Secondary Targets 1 | . 1 . . . Max Gunslinging Chain 1 | . 1 . . . Shots Hit Robots 96 | 3 53 32 2 6 Core Hits 38 | 2 15 9 1 11 Critical Hits . | . . . . . Critical Kills . | . . . . . Critical Parts Destroyed . | . . . . . Melee Attacks 40 | . 21 19 . . Impact 40 | . 21 19 . . Slashing . | . . . . . Piercing . | . . . . . Sneak Attacks . | . . . . . Combat Hostiles . | . . . . . Follow-up Attacks . | . . . . . Damage Inflicted 1901 | 31 660 716 36 458 Guns 229 | 31 176 22 . . Cannons 543 | . 207 226 36 74 Explosions 287 | . . . . 287 Melee 737 | . 269 468 . . Ramming 105 | . 8 . . 97 Kinetic 460 | . 176 248 36 . Thermal 238 | 31 207 . . . Explosive 287 | . . . . 287 Electromagnetic 74 | . . . . 74 Impact 737 | . 269 468 . . Slashing . | . . . . . Piercing . | . . . . . Highest Corruption 6 | . . . 6 1 Average Corruption 1 | . . . 5 1 Corruption Purged . | . . . . . Overload Shots . | . . . . . Overflow Damage 76 | . 4 36 . 36 Projectiles . | . . . . . Explosions 36 | . . . . 36 Melee 40 | . 4 36 . . Knockbacks 5 | . . 4 . 1 Impact 4 | . . 3 . 1 Kinetic 1 | . . 1 . . Secondary . | . . . . . Self-Inflicted Damage 46 | . 3 . . 43 Shots . | . . . . . Rammed 22 | . 2 . . 20 Targets Rammed 22 | . 2 . . 20 Kicked . | . . . . . Crushed . | . . . . . Highest Temperature 284 | . 284 30 6 12 Average Temperature 67 | . 90 12 4 6 Received Heat Transfer 792 | . 120 69 . 603 Siege Activations . | . . . . . Robots Corrupted . | . . . . . Combat Hostiles . | . . . . . Parts Fried 5 | . . 5 . . Impact Corruptions 6 | . 1 5 . . Robots Melted . | . . . . . Combat Hostiles . | . . . . . Parts Melted 2 | . 2 . . . Heat Transferred 519 | 75 444 . . . Parts Sabotaged . | . . . . . Parts Stolen . | . . . . . Parts Stripped . | . . . . . Power Chain Reactions . | . . . . . Missiles Intercepted . | . . . . . Alert | -11 -10 -9 -9 -8 ------- Run | Scr Mat Mat Min Mat Peak Influence 286 | 5 215 286 94 207 Initial 94 | . 2 77 94 19 Average 91 | 4 69 173 88 99 Maximum Alert Level 1 | . 1 1 . 1 Low Security (%) 87 | 100 91 55 100 92 Level 1 12 | . 8 44 . 7 Level 2 . | . . . . . Level 3 . | . . . . . Level 4 . | . . . . . Level 5 . | . . . . . High Security . | . . . . . Max Security . | . . . . . Squads Dispatched 5 | . . 2 1 2 Investigation 2 | . . 1 1 . Extermination . | . . . . . Reinforcement 3 | . . 1 . 2 Assault . | . . . . . Garrison . | . . . . . Intercept . | . . . . . Construction Impeded 1 | . . . . 1 Haulers Reinforced . | . . . . . Stealth | -11 -10 -9 -9 -8 --------- Run | Scr Mat Mat Min Mat Distress Signals 2 | . . 1 . 1 Communications Jammed . | . . . . . Distress Signals . | . . . . . Times Spotted 61 | . 17 11 10 23 Peak Tracking Total 10 | . 3 6 5 10 Tactical Retreats 9 | . 2 . 2 5 Traps | -11 -10 -9 -9 -8 ------- Run | Scr Mat Mat Min Mat Traps Triggered 3 | . . 1 . 2 Indirectly . | . . . . . Trap Hack Attempts . | . . . . . Triggered . | . . . . . Disarmed . | . . . . . Reprogrammed . | . . . . . Reused . | . . . . . Traps Extracted . | . . . . . Installed . | . . . . . Triggered . | . . . . . Machines | -11 -10 -9 -9 -8 ---------- Run | Scr Mat Mat Min Mat Machines Disabled . | . . . . . Max in Single Turn . | . . . . . Machines Sabotaged . | . . . . . Garrisons Compromised . | . . . . . Overloaded Fab Kills . | . . . . . Fab Network Shutdowns . | . . . . . Hacking | -11 -10 -9 -9 -8 --------- Run | Scr Mat Mat Min Mat Machines Accessed 7 | . 4 2 1 . Terminals 5 | . 3 2 . . Fabricators . | . . . . . Repair Stations . | . . . . . Recycling Units 1 | . 1 . . . Scanalyzers . | . . . . . Garrison Access . | . . . . . Total Hacks 13 | . 9 3 1 . Successful 11 | . 8 2 1 . Failed 2 | . 1 1 . . Catastrophic 1 | . . 1 . . Database Lockouts . | . . . . . Manual . | . . . . . Terminals 10 | . 7 3 . . Fabricators . | . . . . . Repair Stations . | . . . . . Recycling Units 2 | . 2 . . . Scanalyzers . | . . . . . Garrison Access . | . . . . . Terminal Hacks 9 | . 6 2 1 . Record 6 | . 5 1 . . Prototype ID Bank 1 | . . 1 . . Open Door 1 | . . . 1 . Alert Level 1 | . 1 . . . Fabricator Hacks . | . . . . . Repair Station Hacks . | . . . . . Recycling Unit Hacks 2 | . 2 . . . Report Inventory 1 | . 1 . . . Retrieve Components 1 | . 1 . . . Scanalyzer . | . . . . . Garrison Access Hacks . | . . . . . Unauthorized Hacks . | . . . . . Terminals . | . . . . . Fabricators . | . . . . . Repair Stations . | . . . . . Recycling Units . | . . . . . Scanalyzers . | . . . . . Garrison Access . | . . . . . Data Cores Recovered . | . . . . . Used . | . . . . . Hacking Detections 4 | . 2 2 . . Full Trace Events . | . . . . . Feedback Events . | . . . . . Feedback Blocked . | . . . . . Robot Schematics Acquired . | . . . . . Robots Built . | . . . . . Matter . | . . . . . Time . | . . . . . Total Robot Build Rating . | . . . . . Part Schematics Acquired . | . . . . . Parts Built . | . . . . . Matter . | . . . . . Time . | . . . . . Total Part Build Rating . | . . . . . Parts Repaired . | . . . . . Time . | . . . . . Parts Recycled . | . . . . . Recycled Matter . | . . . . . Retrieved Matter . | . . . . . Retrieved Components 5 | . 5 . . . Parts Scanalyzed . | . . . . . Part Schematics Acquired . | . . . . . Parts Damaged . | . . . . . Bothacking | -11 -10 -9 -9 -8 ------------ Run | Scr Mat Mat Min Mat Used RIF Installer . | . . . . . Robots Hacked . | . . . . . Non-combat . | . . . . . Combat . | . . . . . Robot Hacks Applied . | . . . . . Relay Couplers Released . | . . . . . Robots Rewired . | . . . . . Allies Hacked . | . . . . . Hacks Repelled . | . . . . . Allies | -11 -10 -9 -9 -8 -------- Run | Scr Mat Mat Min Mat Total Allies . | . . . . . Largest Group . | . . . . . Highest-Rated Group . | . . . . . Highest-Rated Ally . | . . . . . Total Orders . | . . . . . Ally Attacks . | . . . . . Total Damage . | . . . . . Kills . | . . . . . Allies Corrupted . | . . . . . Allies Melted . | . . . . . Intel | -11 -10 -9 -9 -8 ------- Run | Scr Mat Mat Min Mat Robot Analysis Total . | . . . . . Derelict Logs Recovered 1 | . . . 1 . Drone Launches . | . . . . . Drone Recoveries . | . . . . . Exploration | -11 -10 -9 -9 -8 ------------- Run | Scr Mat Mat Min Mat Turns Passed 1774 | 150 676 307 249 392 Spaces Moved 1136 | 112 372 143 154 355 Core 224 | 13 . . 23 188 Treads . | . . . . . Legs 761 | 99 372 143 131 16 Wheels 28 | . . . . 28 Hover . | . . . . . Flight 123 | . . . . 123 Fastest Speed 40 | 50 120 120 50 40 Average Speed 120 | 116 134 135 145 89 Slowest Speed 550 | 150 150 180 550 250 Overloaded Moves . | . . . . . Propulsion Burnouts . | . . . . . Robots Hopped . | . . . . . Cave-ins Triggered . | . . . . . Exploration Rate (%) 32 | 5 58 17 45 37 Regions Visited 4 Branch Regions 1 Pre-discovered Areas . | . . . . . Known Exits Taken . | . . . . . Unknown Exits Taken 4 | 1 1 1 1 . Scrap Searched 1 | . . . 1 . Spaces Dug . | . . . . . Terrain Destroyed 45 | . . . . 45 Melee . | . . . . . Projectile . | . . . . . AOE 45 | . . . . 45 Terrain Rammed . | . . . . . Walls Destroyed . | . . . . . Machines Disabled . | . . . . . Actions | -11 -10 -9 -9 -8 --------- Run | Scr Mat Mat Min Mat Total 1381 | 124 467 201 179 410 Wait 20 | . 7 3 4 6 Move 1132 | 111 371 142 153 355 Hop . | . . . . . Pick Up 29 | 2 13 9 5 . Fast Attach 28 | 7 1 4 1 15 Attach 8 | . 2 3 1 2 Detach 5 | . 2 . 1 2 Swap 12 | 1 7 3 1 . Drop 31 | . 9 6 11 5 Fire 54 | 3 32 12 2 5 Melee 40 | . 21 19 . . Ram 19 | . . . . 19 Kick 3 | . 2 . . 1 Crush . | . . . . . Escape Stasis . | . . . . . Rewire . | . . . . . Trap . | . . . . . Miscellaneous . | . . . . . Route ------- -11/Scrapyard -10/Materials (discovered 2 exits: *Mat / [*Min]) -9/Materials -9/Mines (discovered 2 exits: [*Mat x2]) -8/Materials (discovered 1 exit: Fac) History --------- Turn | Location | Event 21 | -11/Scrapyard | Discovered new exit (range 16) 151 | -11/Scrapyard | Entered Materials 328 | -10/Materials | Build established: Mutant 532 | -10/Materials | Discovered new exit (range 15) 709 | -10/Materials | Discovered new exit (range 6) 827 | -10/Materials | Entered another Materials area 827 | -9/Materials | Evolved 2 slots: Propulsion x1, Weapon x1 1015 | -9/Materials | Lost 5 parts (1p2n2w) 1039 | -9/Materials | Discovered new exit (range 11) 1134 | -9/Materials | Entered Mines 1152 | -9/Mines | Discovered new exit (range 7) 1173 | -9/Mines | Learned location of 1 exit from Materials 1176 | -9/Mines | Met a Derelict shopkeep closing up shop 1281 | -9/Mines | Build established: Scavenger-Mutant 1313 | -9/Mines | Assembled infested the area 1318 | -9/Mines | Assisted by a Guerilla fighting off Assembled 1375 | -9/Mines | Discovered new exit (range 15) 1383 | -9/Mines | Entered Materials 1383 | -8/Materials | Evolved 2 slots: Propulsion x1, Utility x1 1384 | -8/Materials | Identified exit to Factory 1407 | -8/Materials | Lost 5 parts (1p3n1u) 1654 | -8/Materials | Build established: Mutant 1679 | -8/Materials | Lost 3 parts (2n1u) 1714 | -8/Materials | Core integrity fell below 50% 1757 | -8/Materials | Core integrity fell below 20% 1775 | -8/Materials | Destroyed by G-47 Trooper with Particle Gun Last Messages --------------- Acquired 30 matter. Acquired Med. Storage Unit. Acquired Ion Engine. Slammed into O-16 Technician. Ion Engine destroyed. Penetrated by Slug. Slug penetrates Terminal. Terminal disabled. Dropped Power Shielding. Acquired Carbon-fiber Leg. Penetrated by Slug. Dropped Carbon-fiber Leg. A-02 Transporter destroyed. Penetrated by Slug. Acquired Adv. Visual Processing Unit. Acquired Lgt. EM Pulse Cannon. Slug penetrates Wall. U-05 Engineer builds a Door. Slug penetrates Wall. G-47 Trooper IFF system glitched. Map ----- +----------------------------------------------------+ | ?? # # ##?????###### # Y?? | | ? ?# ! # #??????# # #? "??? | | "???# ! # #??????# ! / #? ??? | | ????########### ####### !# ###+##?? | | ????????????# #= # ## #?? | | ????????????# % #! / #?? | | ????????????# # # ! #### !#?? | | ?????????#### #%# #!%* #??## ##?? | | ?????????# # # # / #???#!#??? | | ?????????# # # # * #???#*#??? | | ?????????# # ####+##########???# #??? | | ?????????# # #???????????#!#??? | | ?????????# % + #???????????#|#??? | | ?????????# # #???????????# #??? | | ?????????## #+## #???????????# #??? | | ???????????### #???????????# #??? | | ?????????????#### #### #???????????# #??? | | ????????#######?# #??# #???????????# #??? | | ????????# ] #?# #??# ############# #??? | | ????????# T #?# #??# !!%!!!=! #??? | | ????????# !### #####################??? | | ????????# # #????????????????????? | | ????????#""" # #????????#####???????? | | ????????#""" + T #?########! #???????? | | ????????#""" # #?# # #???????? | | ????????# !# #?# @ # ######### | | ????????#""" ## ##?# ] # " ## # | | ????????#""" ## #??# # T ## """ # | | ????????#""" ## #??# g # " ## """ # | | ????????# ## #??# bgg # # """ # | | ????????####/### #######/####=### # | | ???????????# #?# ! g # """ # | | ???????????# #?# gu + """ # | | ???????????# #?# # """ # | | ???????????# ### u # # | | ???????????# # """ # | | ???????????# % # """ # | | ???????????# // """ "T[*=! # """ # | | ???????????# // """ *%*### # # | | ???????????# // """ **!#?# ######?? | | ???????????# #?# #??????? | | ???????????# ### #??????? | | ???????????# """ """ """ ""# #??????? | | ???????????# """ """ """ T"# #??????? | | ???????????# """ """ """ ""# #??????? | | ???????????# #?# #??????? | | ???????????# #?# #??????? | | ???????????# #?# #??????? | | ?????????########+## #?# #??????? | | ?????????# # ####+###????? | +----------------------------------------------------+ Best States ------------- Heat Dissipation 31 Energy Generation 12 Energy Capacity 265 Matter Stores 300 Matter Capacity 300 Sight Range 20 Terrain Scan Density 10 Armor Coverage 225 Resistance: KI 20 Resistance: TH 20 Resistance: EX 20 Resistance: EM 20 Resistance: I 20 Resistance: S 20 Resistance: P 20 Power Shielding 33 Evasion (%) 62 Melee Accuracy 5 Offensive Hacking 10 Item Schematics ----------------- None Robot Schematics ------------------ None Fabricated ------------ Nothing Alien Tech Used ----------------- None Achievements -------------- I Survived The Infestation Use The Force Challenges ------------ None Game ------ Seed SeismicAntimatterCompactor Manual? 0 Play Time 00:57:57 Cumulative 17.6 hours Start 2022.01.19 @ 23:02:31 End 2022.01.20 @ 13:27:30 Sessions 5 Manual Loads 0 Difficulty Adventurer Special Mode None Game No. 19 Rogue 17 Adventurer 1 Explorer 1 Win Type - Total 0 Types 0/0/0/0/0/0/0/0/0 Lore% 6 Gallery% 33 Achievement% 13 Wizard Run 0 Options --------- ASCII 0 Keyboard 1 Movement Numpad Keybinds 0 Fullscreen 2 Font 18/X11Bold Map View 50x50 Tactical HUD 0 Map Filters NONE Filters NONE Steam 1 RUN: 9e8138f3-99c1-4a75-8841-95ed2d220b7f